Cogmind - Beta 9.3 @@@ ROGUE MODE // 2020.01.17 @ 23:26:47 // Winter2019/RPGLIKE Player: badjay Result: Destroyed by Lightning with EMDS Performance ------------- Evolutions (5) 2500 Regions Visited (24) 4800 Robots Destroyed (553) 2765 Value Destroyed (22396) 22396 Prototype IDs (67) 1340 Alien Tech Used (1) 200 Bonus (7605) 7605 TOTAL SCORE: 41606 Bonus ------- High Alert Combat Kills 3787 Follower Combat Kills 2622 Network Hubs Disabled 800 Met Data Miner 300 Built Enhanced Grunts 300 Met R17 at Cetus 500 Friendly Fire -704 Cogmind --------- Core Integrity 0/600 Matter 286/300 Energy 76/360 System Corruption 11% Temperature Cool (0) Movement Flying (32) Location -5/Hub_04(d) Parts ------- > --- POWER (2) -------- Cooled Deuterium Engine Light Neutrino Core > --- PROPULSION (2) --- Cooled VTOL Module Cooled VTOL Module > --- UTILITY (12) ----- Long-range Terrain Scanner Advanced Melee Analysis Suite Advanced Melee Analysis Suite Advanced Target Analyzer Improved Core Analyzer Improved Armor Integrity Analyzer Microactuators Reaction Control System Improved Phase Shifter Advanced Force Field Advanced Hacking Suite Experimental System Shield > --- WEAPON (5) ------- KE Penetrator Lance Lance Kinetic Spear Kinetic Spear > --- INVENTORY (4) ---- Protomatter-87 Protomatter-90 Advanced Actuator Array System Restoration Module Peak State ------------ > --- POWER ------------ Cooled Deuterium Engine Light Neutrino Core > --- PROPULSION ------- Cooled VTOL Module Cooled VTOL Module > --- UTILITY ---------- Advanced Melee Analysis Suite Advanced Melee Analysis Suite Advanced Target Analyzer Improved Core Analyzer Improved Armor Integrity Analyzer Precision Matter Filter Microactuators Reaction Control System Improved Phase Shifter Advanced Force Field Advanced Hacking Suite Experimental System Shield > --- WEAPON ----------- Lance Lance Lance Kinetic Spear Kinetic Spear > --- INVENTORY -------- Protomatter Protomatter Advanced Actuator Array System Restoration Module [Rating: 130] Favorites ----------- Power Cooled Ion Engine Engine Cooled Ion Engine Power Core Light Neutrino Core Reactor Cold Fusion Reactor Propulsion Cooled VTOL Module Flight Unit Cooled VTOL Module Utility Improved Melee Analysis Suite Device Microactuators Processor Improved Melee Analysis Suite Hackware Improved System Shield Weapon Lance Energy Gun Improved EM Shotgun Ballistic Gun Light Assault Rifle Impact Weapon Powered Hammer Slashing Weapon Greatsword Piercing Weapon Lance Special Melee Weapon Improved Datajack Build | -11 -10 -10 -9 -9 -8 -7 -7 -7 -7 -7 -7 -6 -6 -6 -6 -6 -5 -5 -5 -5 -5 -5 -5 -5 ------- Run | Scr Mat Min Mat Sto Mat Fac Was Fac Low Low Zio Pro Fac Low Low Dat Pro Fac Was Fac Ext Cet Arc Hub Slots Evolved 16 | . 1 1 5 2 2 3 . . . . . 1 . . . . . 1 . . . . . . Power 1 | . . . 1 . . . . . . . . . . . . . . . . . . . . . Propulsion 1 | . . 1 . . . . . . . . . . . . . . . . . . . . . . Utility 11 | . . . 3 1 2 3 . . . . . 1 . . . . . 1 . . . . . . Weapon 3 | . 1 . 1 1 . . . . . . . . . . . . . . . . . . . . Parts Attached 167 | . 4 2 17 8 10 33 . 18 1 . 3 3 20 3 1 . 3 23 . 6 3 2 . 7 Power 17 | . 1 . 4 . . 1 . 2 . . . . 5 . . . . 3 . 1 . . . . Engine 14 | . 1 . 4 . . 1 . 2 . . . . 5 . . . . 1 . . . . . . Core 2 | . . . . . . . . . . . . . . . . . . 1 . 1 . . . . Reactor 1 | . . . . . . . . . . . . . . . . . . 1 . . . . . . Propulsion 14 | . 1 2 3 2 . 1 . 1 . . . . 4 . . . . . . . . . . . Treads . | . . . . . . . . . . . . . . . . . . . . . . . . . Leg . | . . . . . . . . . . . . . . . . . . . . . . . . . Wheel . | . . . . . . . . . . . . . . . . . . . . . . . . . Hover . | . . . . . . . . . . . . . . . . . . . . . . . . . Flight 14 | . 1 2 3 2 . 1 . 1 . . . . 4 . . . . . . . . . . . Utility 79 | . . . 4 1 6 13 . 9 1 . 2 3 7 3 1 . 1 17 . 4 3 2 . 2 Device 41 | . . . . . . 2 . 5 1 . 2 3 5 3 1 . . 12 . 1 2 2 . 2 Storage . | . . . . . . . . . . . . . . . . . . . . . . . . . Processor 27 | . . . 4 1 5 8 . 3 . . . . 2 . . . . 2 . 1 1 . . . Hackware 11 | . . . . . 1 3 . 1 . . . . . . . . 1 3 . 2 . . . . Protection . | . . . . . . . . . . . . . . . . . . . . . . . . . Artifact . | . . . . . . . . . . . . . . . . . . . . . . . . . Weapon 57 | . 2 . 6 5 4 18 . 6 . . 1 . 4 . . . 2 3 . 1 . . . 5 Energy Gun 25 | . 2 . 4 3 4 10 . . . . . . . . . . 1 . . . . . . 1 Energy Cannon . | . . . . . . . . . . . . . . . . . . . . . . . . . Ballistic Gun 3 | . . . 2 . . . . . . . . . . . . . . . . . . . . 1 Ballistic Cannon . | . . . . . . . . . . . . . . . . . . . . . . . . . Launcher . | . . . . . . . . . . . . . . . . . . . . . . . . . Special Weapon . | . . . . . . . . . . . . . . . . . . . . . . . . . Impact Weapon 3 | . . . . . . . . 2 . . . . . . . . . . . . . . . 1 Slashing Weapon 13 | . . . . 2 . 8 . 2 . . 1 . . . . . . . . . . . . . Piercing Weapon 12 | . . . . . . . . 2 . . . . 4 . . . 1 2 . 1 . . . 2 Special Melee Weapon 1 | . . . . . . . . . . . . . . . . . . 1 . . . . . . Unidentified Prototypes 14 | . . . . . . 4 . 2 1 . 1 . 3 . . . . 2 . . . . . 1 Parts Lost 6 | . 1 . 1 . . 1 . . . . . . . . . . . 2 . 1 . . . . Power 1 | . . . . . . 1 . . . . . . . . . . . . . . . . . . Propulsion . | . . . . . . . . . . . . . . . . . . . . . . . . . Utility 3 | . . . . . . . . . . . . . . . . . . 2 . 1 . . . . Weapon 2 | . 1 . 1 . . . . . . . . . . . . . . . . . . . . . Highest Loss Streak 1 | . 1 . 1 . . 1 . . . . . . . . . . . 1 . 1 . . . . Average Slot Usage (%) 94 | . 64 64 96 100 99 95 94 93 92 89 93 95 94 95 95 95 95 96 100 99 100 100 100 100 Engine 9 | . 18 17 12 15 13 12 11 11 10 10 10 10 9 10 10 10 10 6 4 4 4 4 4 4 Flight 11 | . 12 28 21 15 13 12 11 11 10 10 10 10 10 10 10 10 10 9 9 9 9 9 9 9 Device 14 | . . . . . . 1 5 5 15 15 15 21 25 25 25 25 25 23 23 23 23 23 23 23 Processor 26 | . . . 38 36 38 37 33 36 26 26 26 23 20 20 20 20 20 20 23 23 23 23 23 23 Hackware 8 | . . . . . 3 10 16 11 10 10 10 10 10 10 10 10 10 11 9 8 9 9 9 9 Energy Gun 6 | . 33 17 19 30 27 15 . . . . . . . . . . . . . . . . . . Slashing Weapon 4 | . . . . . . 5 16 13 5 5 9 10 5 5 5 5 5 2 . . . . . . Piercing Weapon 9 | . . . . . . . . 2 10 10 10 10 14 15 15 15 14 15 19 20 23 23 23 22 Naked Turns 9 | . 9 . . . . . . . . . . . . . . . . . . . . . . . Heaviest Build 61 | . 9 7 25 28 28 31 30 33 33 33 35 37 49 49 45 45 45 49 45 56 61 57 56 58 Greatest Support 64 | 3 14 18 25 32 32 33 33 36 36 36 36 41 50 50 50 54 50 54 54 64 64 60 60 64 Greatest Overweight (x) 1 | . 1 . . . . . . . . . . . . . . . . . . . 1 . . . Average Overweight (x) . | . . . . . . . . . . . . . . . . . . . . . . . . . Largest Inventory Capacity 4 | . . . 1 2 2 4 4 4 4 4 4 4 4 4 4 4 4 4 4 4 4 4 4 4 Average Capacity 3 | . . . . 1 2 3 4 4 4 4 4 4 4 4 4 4 4 4 4 4 4 4 4 4 Most Carried 4 | . . . 1 2 2 4 2 4 4 4 4 4 4 4 4 4 4 4 4 4 4 4 4 4 Average Carried 3 | . . . . 1 1 2 2 3 3 4 4 3 3 4 4 4 4 3 4 4 4 4 4 4 Final Capacity 4 | . . . 1 2 2 4 4 4 4 4 4 4 4 4 4 4 4 4 4 4 4 4 4 4 Final Carried 4 | . . . 1 2 2 2 2 2 4 4 4 3 4 4 4 4 4 4 4 4 4 4 4 4 Class Distribution -------------------- 71% | Hacker-Sprinter 11% | Machinist-Sprinter 8% | Hacker-Mutant 4% | Wizard-Sprinter 3% | Hacker-Gunner Dominant Class ---------------- Hacker-Mutant | -10/Materials Hacker-Mutant | -10/Mines Hacker-Mutant | -9/Materials Hacker-Sprinter | -9/Storage Hacker-Sprinter | -8/Materials Hacker-Sprinter | -7/Factory Hacker-Sprinter | -7/Waste Hacker-Sprinter | -7/Factory Hacker-Sprinter | -7/Lower Caves Hacker-Sprinter | -7/Lower Caves Hacker-Sprinter | -7/Zion Hacker-Sprinter | -6/Proximity Caves Hacker-Sprinter | -6/Factory Machinist-Sprinter | -6/Lower Caves Machinist-Sprinter | -6/Lower Caves Machinist-Sprinter | -6/Data Miner Hacker-Sprinter | -5/Proximity Caves Hacker-Sprinter | -5/Factory Hacker-Sprinter | -5/Waste Hacker-Sprinter | -5/Factory Hacker-Sprinter | -5/Extension Hacker-Sprinter | -5/Cetus Hacker-Sprinter | -5/Archives Hacker-Sprinter | -5/Hub_04(d) Resources | -11 -10 -10 -9 -9 -8 -7 -7 -7 -7 -7 -7 -6 -6 -6 -6 -6 -5 -5 -5 -5 -5 -5 -5 -5 ----------- Run | Scr Mat Min Mat Sto Mat Fac Was Fac Low Low Zio Pro Fac Low Low Dat Pro Fac Was Fac Ext Cet Arc Hub Matter Collected 2030 | 200 40 20 223 80 110 351 . 248 20 . 30 30 200 30 10 . 30 210 . 80 30 20 . 68 Remotely . | . . . . . . . . . . . . . . . . . . . . . . . . . Salvage Created 22447 | . 772 70 1771 1478 2057 1902 . 1209 312 714 . 353 1865 628 1001 . 864 3478 . 1072 1389 358 169 985 Parts 1314 | . 39 12 126 118 107 109 . 71 34 39 . 25 82 39 39 . 44 207 . 88 60 16 5 54 Haulers Intercepted 32 | . 2 . 5 4 6 1 . 3 . . . . 4 . . . . . . . 6 . . 1 Recyclers Shooed 1 | . . . . . 1 . . . . . . . . . . . . . . . . . . . Parts Field Recycled . | . . . . . . . . . . . . . . . . . . . . . . . . . Retrieved Matter . | . . . . . . . . . . . . . . . . . . . . . . . . . Parts Self-Destructed 225 | . . . . . . . . . 44 45 . 27 . 39 25 . 45 . . . . . . . Prevented 11 | . . . . . . . . . 8 . . 2 . 1 . . . . . . . . . . Kills | -11 -10 -10 -9 -9 -8 -7 -7 -7 -7 -7 -7 -6 -6 -6 -6 -6 -5 -5 -5 -5 -5 -5 -5 -5 ------- Run | Scr Mat Min Mat Sto Mat Fac Was Fac Low Low Zio Pro Fac Low Low Dat Pro Fac Was Fac Ext Cet Arc Hub Combat Hostiles Destroyed 449 | . 15 6 36 39 32 43 . 29 12 18 . 9 26 16 20 . 18 69 . 28 16 5 1 11 Melee 280 | . . . . . . 2 . 29 12 18 . 9 26 16 20 . 18 69 . 28 16 5 1 11 Guns 134 | . 12 4 34 31 26 27 . . . . . . . . . . . . . . . . . . AOE 28 | . 3 2 1 7 6 9 . . . . . . . . . . . . . . . . . . Classes Destroyed 18 | . 6 . 5 . 2 1 . . 1 . . . . . 1 . . 1 . . . . . 1 Worker 9 | . 1 . 2 . 2 1 . . . . . . 1 . . . . 1 . . . . . 1 Builder 5 | . 1 . 1 . 2 1 . . . . . . . . . . . . . . . . . . Tunneler 3 | . . . 3 . . . . . . . . . . . . . . . . . . . . . Hauler 32 | . 2 . 5 4 6 1 . 3 . . . . 4 . . . . . . . 6 . . 1 Recycler 7 | . . . 1 . 4 1 . . . . . . 1 . . . . . . . . . . . Carrier 2 | . . . . . . . . . . . . . . . . . . . . . . . . 2 Operator 3 | . . . . . 1 . . . . . . . . . . . . . . . . . 1 1 Watcher 41 | . 1 . 4 2 3 5 . 7 . . . . 4 . . . . 7 . 4 1 . . 3 Swarmer 94 | . 3 4 8 7 5 6 . 10 5 11 . 4 3 5 5 . 5 11 . . 1 . . 1 Grunt 194 | . 12 2 18 16 19 23 . 9 5 6 . . 12 6 3 . 7 31 . 16 4 1 . 4 Brawler 12 | . . . 1 4 . . . 1 . . . . 1 . 1 . 1 3 . . . . . . Duelist 16 | . . . 1 2 2 1 . . . . . . 2 1 1 . 2 2 . 2 . . . . Sentry 82 | . . . 8 10 6 9 . 6 1 1 . 1 6 1 1 . 2 11 . 5 7 . 1 6 Demolisher 1 | . . . . . . . . . . . . . . . . . . 1 . . . . . . Hunter 18 | . . . . . 1 2 . 1 . . . 2 . 2 2 . 1 5 . 2 . . . . Programmer 14 | . . . . . . 2 . 2 . . . 1 1 . . . . 5 . 2 . 1 . . Behemoth 7 | . . . . . . . . . 1 . . 1 1 1 . . . . . 1 2 . . . Cetus Guard 3 | . . . . . . . . . . . . . . . . . . . . . . 3 . . Thug 1 | . . . . . 1 . . . . . . . . . . . . . . . . . . . Savage 1 | . . . . . . . . . . . . . . . 1 . . . . . . . . . Butcher 6 | . . . . . . . . . . . . . . . 5 . . . . . 1 . . . Guerrilla 1 | . . . . . . . . . . . . . . . . . . . . . 1 . . . Mutant 1 | . . . . . . . . . . . . . . . 1 . . . . . . . . . Best Kill Streak 10 | . 7 3 8 10 7 5 . 6 4 10 . 4 5 4 8 . 7 7 . 3 7 2 2 3 Combat Bots Only 10 | . 4 3 7 10 6 5 . 5 4 10 . 4 4 4 8 . 7 7 . 3 5 2 1 3 Max Kills in Single Turn 5 | . 2 2 3 4 5 3 . 2 2 2 . 1 1 2 1 . 1 2 . 1 1 1 1 2 Gunslinging 1 | . 1 . 1 1 1 . . . . . . . . . . . . . . . . . . . Exploded 3 | . 2 2 1 2 1 3 . . . . . . . . . . . . . . . . . . Melee 2 | . . . . . . 1 . 2 2 2 . 1 1 2 1 . 1 2 . 1 1 1 1 1 Uniques/NPCs Destroyed . | . . . . . . . . . . . . . . . . . . . . . . . . . Combat | -11 -10 -10 -9 -9 -8 -7 -7 -7 -7 -7 -7 -6 -6 -6 -6 -6 -5 -5 -5 -5 -5 -5 -5 -5 -------- Run | Scr Mat Min Mat Sto Mat Fac Was Fac Low Low Zio Pro Fac Low Low Dat Pro Fac Was Fac Ext Cet Arc Hub Damage Taken 12604 | . 554 125 1159 788 858 1958 . 1044 417 703 . 233 310 361 268 67 228 1658 . 469 161 295 25 923 Core 10232 | . 465 101 971 623 694 1568 . 839 337 568 . 191 252 297 219 60 190 1323 . 388 126 235 19 766 Absorbed by Shields 2698 | . . . . . . . . 43 158 274 . 86 118 131 96 24 86 593 . 321 131 275 26 336 Redirected to Core 8042 | . 290 76 618 547 595 1295 . 643 267 433 . 133 194 228 175 27 127 1192 . 290 120 210 19 563 Core Remaining (%) 97 | 100 . 100 . 100 95 . . . . . . 100 . . . . 91 . . . . . . . Volleys Fired 378 | . 43 23 114 52 60 81 . . . . . . . . . . . . . . . . . 5 Largest 4 | . 2 1 3 4 4 4 . . . . . . . . . . . . . . . . . 1 Hottest 180 | . 80 40 135 180 180 180 . . . . . . . . . . . . . . . . . 65 Shots Fired 1026 | . 77 23 193 205 240 283 . . . . . . . . . . . . . . . . . 5 Gun 1026 | . 77 23 193 205 240 283 . . . . . . . . . . . . . . . . . 5 Cannon . | . . . . . . . . . . . . . . . . . . . . . . . . . Launcher . | . . . . . . . . . . . . . . . . . . . . . . . . . Special . | . . . . . . . . . . . . . . . . . . . . . . . . . Kinetic 54 | . . . 53 . . . . . . . . . . . . . . . . . . . . 1 Thermal 1 | . . . 1 . . . . . . . . . . . . . . . . . . . . . Explosive . | . . . . . . . . . . . . . . . . . . . . . . . . . Electromagnetic 971 | . 77 23 139 205 240 283 . . . . . . . . . . . . . . . . . 4 Robot Hit Streak 43 | . 13 16 43 42 26 38 . . . . . . . . . . . . . . . . . . Robot Miss Streak 5 | . 3 1 2 5 4 2 . . . . . . . . . . . . . . . . . . Penetration Max . | . . . . . . . . . . . . . . . . . . . . . . . . . Secondary Targets 32 | . 2 . 6 9 6 9 . . . . . . . . . . . . . . . . . . Max Gunslinging Chain 2 | . 1 . 1 2 1 1 . . . . . . . . . . . . . . . . . . Shots Hit Robots 1581 | . 53 20 156 168 169 251 . 95 26 35 . 25 93 31 57 1 33 180 . 80 39 32 4 33 Core Hits 906 | . 32 8 100 92 110 138 . 41 14 18 . 11 42 18 25 . 25 102 . 45 27 15 3 40 Critical Hits 128 | . . . 2 . 3 9 . 12 4 6 . 3 15 3 4 . 5 24 . 19 11 2 . 6 Critical Kills 54 | . . . 1 . . 4 . 5 2 4 . 1 7 1 2 . 1 12 . 6 4 . . 4 Critical Parts Destroyed 65 | . . . 1 . 3 4 . 7 2 2 . 2 8 2 2 . 3 10 . 11 6 2 . . Melee Attacks 1107 | . . . . 3 . 14 . 133 36 45 . 39 173 37 70 1 43 245 . 107 55 44 10 52 Impact . | . . . . . . . . . . . . . . . . . . . . . . . . . Slashing 492 | . . . . 3 . 14 . 129 25 34 . 26 117 21 40 1 25 57 . . . . . . Piercing 615 | . . . . . . . . 4 11 11 . 13 56 16 30 . 18 188 . 107 55 44 10 52 Sneak Attacks 55 | . . . . . . . . 9 2 . . 2 11 1 3 1 . 10 . 1 14 . 1 . Combat Hostiles 26 | . . . . . . . . 3 2 . . 2 3 1 2 . . 9 . 1 3 . . . Follow-up Attacks 228 | . . . . . . 1 . 21 5 9 . 12 27 10 18 . 12 57 . 21 11 15 . 9 Damage Inflicted 65351 | . 1202 339 2821 2935 3791 5283 . 6584 1768 2329 . 1412 6282 1895 3078 183 1822 10778 . 4626 3477 1747 333 2666 Guns 11939 | . 724 241 2290 2464 2503 3717 . . . . . . . . . . . . . . . . . . Cannons . | . . . . . . . . . . . . . . . . . . . . . . . . . Explosions 4821 | . 478 98 531 471 1288 1111 . . . . . . . . . . . . . . . . . 844 Melee 48591 | . . . . . . 455 . 6584 1768 2329 . 1412 6282 1895 3078 183 1822 10778 . 4626 3477 1747 333 1822 Ramming . | . . . . . . . . . . . . . . . . . . . . . . . . . Kinetic 345 | . . . 345 . . . . . . . . . . . . . . . . . . . . . Thermal 3930 | . 478 98 541 471 1231 1111 . . . . . . . . . . . . . . . . . . Explosive . | . . . . . . . . . . . . . . . . . . . . . . . . . Electromagnetic 12485 | . 724 241 1935 2464 2560 3717 . . . . . . . . . . . . . . . . . 844 Impact . | . . . . . . . . . . . . . . . . . . . . . . . . . Slashing 24833 | . . . . . . 455 . 6545 1586 1921 . 1041 5250 1441 2326 183 1321 2764 . . . . . . Piercing 23758 | . . . . . . . . 39 182 408 . 371 1032 454 752 . 501 8014 . 4626 3477 1747 333 1822 Highest Corruption 8 | . . . . 1 3 5 8 8 . . . . 1 1 . . . 2 . 1 1 1 . 8 Average Corruption 2 | . . . . 1 2 4 3 3 . . . . 1 1 . . . 1 . 1 1 1 . 3 Corruption Purged 20 | . . . . . . 4 . 10 . . . . 1 1 . . . 3 . . . 1 . . Effects 80 | . . . . . 9 32 . 28 . . . . . 1 . . . 8 . . . . . 2 Message Errors 16 | . . . . . 1 7 . 5 . . . . . . . . . 3 . . . . . . Matter Fused 14 | . . . . . 2 5 . 6 . . . . . . . . . . . . . . . 1 Heat Flow Errors 13 | . . . . . . 6 . 5 . . . . . . . . . 2 . . . . . . Energy Discharges 12 | . . . . . 3 4 . 3 . . . . . 1 . . . 1 . . . . . . Data Loss (minor) 11 | . . . . . . 4 . 5 . . . . . . . . . 1 . . . . . 1 Misfires 1 | . . . . . . 1 . . . . . . . . . . . . . . . . . . Targeting Errors 11 | . . . . . 3 3 . 4 . . . . . . . . . 1 . . . . . . Weapon Failures 2 | . . . . . . 2 . . . . . . . . . . . . . . . . . . Overload Shots . | . . . . . . . . . . . . . . . . . . . . . . . . . Overflow Damage 4272 | . 32 . 31 16 108 80 . 977 267 397 . 88 820 22 181 173 126 634 . 151 74 67 . 28 Projectiles . | . . . . . . . . . . . . . . . . . . . . . . . . . Explosions 215 | . 32 . 31 16 108 25 . . . . . . . . . . . . . . . . . 3 Melee 4057 | . . . . . . 55 . 977 267 397 . 88 820 22 181 173 126 634 . 151 74 67 . 25 Knockbacks . | . . . . . . . . . . . . . . . . . . . . . . . . . Impact . | . . . . . . . . . . . . . . . . . . . . . . . . . Kinetic . | . . . . . . . . . . . . . . . . . . . . . . . . . Secondary . | . . . . . . . . . . . . . . . . . . . . . . . . . Self-Inflicted Damage 1227 | . 170 . 173 47 168 340 . . . . . . . . . . . . . . . . . 329 Shots 30 | . 5 . 6 1 4 10 . . . . . . . . . . . . . . . . . 4 Rammed . | . . . . . . . . . . . . . . . . . . . . . . . . . Targets Rammed . | . . . . . . . . . . . . . . . . . . . . . . . . . Kicked . | . . . . . . . . . . . . . . . . . . . . . . . . . Crushed . | . . . . . . . . . . . . . . . . . . . . . . . . . Highest Temperature 429 | . 174 93 429 385 344 409 . 262 . . . . . . . . . 243 . . 1 . . 36 Average Temperature 110 | . 51 28 107 123 133 114 . 122 . . . . . . . . . 113 . . 1 . . 14 Received Heat Transfer 2773 | . 105 54 393 288 288 573 . 234 137 48 . 14 62 75 26 8 30 249 . 106 32 23 4 24 Effects 20 | . . . 9 3 1 7 . . . . . . . . . . . . . . . . . . Shutdowns 1 | . . . 1 . . . . . . . . . . . . . . . . . . . . . Energy Bleed 3 | . . . 1 . 1 1 . . . . . . . . . . . . . . . . . . Interference 15 | . . . 6 3 . 6 . . . . . . . . . . . . . . . . . . Damage (minor) 1 | . . . 1 . . . . . . . . . . . . . . . . . . . . . Siege Activations . | . . . . . . . . . . . . . . . . . . . . . . . . . Robots Corrupted 11 | . . . 1 1 1 5 . . . . . . . . . . . . . . . . . 3 Combat Hostiles 7 | . . . 1 1 . 5 . . . . . . . . . . . . . . . . . . Parts Fried 91 | . 4 . 7 20 19 37 . . . . . . . . . . . . . . 1 . . 3 Impact Corruptions . | . . . . . . . . . . . . . . . . . . . . . . . . . Robots Melted . | . . . . . . . . . . . . . . . . . . . . . . . . . Combat Hostiles . | . . . . . . . . . . . . . . . . . . . . . . . . . Parts Melted 3 | . . . 1 . . 2 . . . . . . . . . . . . . . . . . . Heat Transferred 4178 | . 500 100 775 503 1400 900 . . . . . . . . . . . . . . . . . . Parts Sabotaged . | . . . . . . . . . . . . . . . . . . . . . . . . . Parts Stolen . | . . . . . . . . . . . . . . . . . . . . . . . . . Parts Stripped . | . . . . . . . . . . . . . . . . . . . . . . . . . Power Chain Reactions 53 | . 6 1 9 7 14 16 . . . . . . . . . . . . . . . . . . Missiles Intercepted . | . . . . . . . . . . . . . . . . . . . . . . . . . Alert | -11 -10 -10 -9 -9 -8 -7 -7 -7 -7 -7 -7 -6 -6 -6 -6 -6 -5 -5 -5 -5 -5 -5 -5 -5 ------- Run | Scr Mat Min Mat Sto Mat Fac Was Fac Low Low Zio Pro Fac Low Low Dat Pro Fac Was Fac Ext Cet Arc Hub Peak Influence 1946 | . 315 413 511 1181 841 1248 451 919 . . . . 739 . . . . 899 314 652 1048 640 412 1946 Average Influence 481 | . 148 272 304 542 543 747 435 522 . . . . 316 . . . . 564 301 297 518 409 376 675 Maximum Alert Level 5 | . 1 2 2 4 3 4 2 3 . . . . 3 . . . . 3 1 2 3 2 2 5 Low Security (%) 17 | 100 74 27 27 25 . 2 . 1 . . . . 28 . . . . 13 . 23 16 26 . 4 Level 1 30 | . 25 52 46 8 32 17 . 24 . . . . 55 . . . . 12 100 60 26 10 38 18 Level 2 28 | . . 19 26 27 42 25 100 43 . . . . 6 . . . . 37 . 15 26 62 61 43 Level 3 20 | . . . . 34 25 36 . 29 . . . . 8 . . . . 37 . . 30 . . 25 Level 4 3 | . . . . 3 . 17 . . . . . . . . . . . . . . . . . 8 Level 5 . | . . . . . . . . . . . . . . . . . . . . . . . . . High Security . | . . . . . . . . . . . . . . . . . . . . . . . . . Max Security . | . . . . . . . . . . . . . . . . . . . . . . . . . Squads Dispatched 100 | . 5 . 6 11 6 15 . 14 . . . . 6 . 1 . . 19 . 10 2 . . 5 Investigation 31 | . 4 . 2 3 1 3 . 3 . . . . 1 . . . . 11 . 3 . . . . Extermination 13 | . . . . . . 2 . 3 . . . . 3 . . . . 3 . 2 . . . . Reinforcement 24 | . 1 . 4 3 3 5 . 2 . . . . 1 . . . . . . 2 1 . . 2 Assault 16 | . . . . 4 1 4 . . . . . . 1 . 1 . . 2 . . 1 . . 2 Garrison 16 | . . . . 1 1 1 . 6 . . . . . . . . . 3 . 3 . . . 1 Intercept . | . . . . . . . . . . . . . . . . . . . . . . . . . Construction Impeded 2 | . . . . . . 1 . . . . . . . . . . . . . . 1 . . . Haulers Reinforced 2 | . . . . . . 1 . . . . . . 1 . . . . . . . . . . . Stealth | -11 -10 -10 -9 -9 -8 -7 -7 -7 -7 -7 -7 -6 -6 -6 -6 -6 -5 -5 -5 -5 -5 -5 -5 -5 --------- Run | Scr Mat Min Mat Sto Mat Fac Was Fac Low Low Zio Pro Fac Low Low Dat Pro Fac Was Fac Ext Cet Arc Hub Distress Signals 17 | . . . 2 1 6 . . 1 . . . . . . . . . 4 . 1 . 2 . . Communications Jammed . | . . . . . . . . . . . . . . . . . . . . . . . . . Distress Signals . | . . . . . . . . . . . . . . . . . . . . . . . . . Times Spotted 684 | . 25 11 54 55 47 78 4 45 16 23 . 10 38 17 21 4 19 88 5 38 22 17 4 43 Peak Tracking Total 27 | . 5 3 9 9 6 14 4 5 6 13 . 4 4 4 7 4 7 12 5 4 4 5 3 27 Tactical Retreats 17 | . 2 1 1 . 5 3 . 1 . . . . . 1 1 . . . . 1 . . . 1 Traps | -11 -10 -10 -9 -9 -8 -7 -7 -7 -7 -7 -7 -6 -6 -6 -6 -6 -5 -5 -5 -5 -5 -5 -5 -5 ------- Run | Scr Mat Min Mat Sto Mat Fac Was Fac Low Low Zio Pro Fac Low Low Dat Pro Fac Was Fac Ext Cet Arc Hub Traps Triggered 8 | . 3 . . . 3 1 . . . . . . . . . . . 1 . . . . . . Indirectly . | . . . . . . . . . . . . . . . . . . . . . . . . . Trap Hack Attempts . | . . . . . . . . . . . . . . . . . . . . . . . . . Triggered . | . . . . . . . . . . . . . . . . . . . . . . . . . Disarmed . | . . . . . . . . . . . . . . . . . . . . . . . . . Reprogrammed . | . . . . . . . . . . . . . . . . . . . . . . . . . Reused . | . . . . . . . . . . . . . . . . . . . . . . . . . Traps Extracted . | . . . . . . . . . . . . . . . . . . . . . . . . . Installed . | . . . . . . . . . . . . . . . . . . . . . . . . . Triggered 7 | . . . . . . 1 . . 4 . . 1 . 1 . . . . . . . . . . Machines | -11 -10 -10 -9 -9 -8 -7 -7 -7 -7 -7 -7 -6 -6 -6 -6 -6 -5 -5 -5 -5 -5 -5 -5 -5 ---------- Run | Scr Mat Min Mat Sto Mat Fac Was Fac Low Low Zio Pro Fac Low Low Dat Pro Fac Was Fac Ext Cet Arc Hub Machines Disabled 56 | . 1 1 . 7 3 2 . . 2 1 . . . . . . . . . . 3 2 1 33 Max in Single Turn 16 | . 1 . . 2 2 1 . . 1 1 . . . . . . . . . . . . . 16 Garrison Access 5 | . . . . 1 1 1 . . . . . . 1 . . . . 1 . . . . . . Network Hub 4 | . . . . . . . . . . . . . . . . . . . . . . . . 4 Machines Sabotaged . | . . . . . . . . . . . . . . . . . . . . . . . . . Garrisons Compromised . | . . . . . . . . . . . . . . . . . . . . . . . . . Overloaded Fab Kills . | . . . . . . . . . . . . . . . . . . . . . . . . . Fab Network Shutdowns 3 | . . . . . . 1 . . . . . . 1 . . . . . . 1 . . . . Hacking | -11 -10 -10 -9 -9 -8 -7 -7 -7 -7 -7 -7 -6 -6 -6 -6 -6 -5 -5 -5 -5 -5 -5 -5 -5 --------- Run | Scr Mat Min Mat Sto Mat Fac Was Fac Low Low Zio Pro Fac Low Low Dat Pro Fac Was Fac Ext Cet Arc Hub Machines Accessed 183 | . 6 1 8 11 8 18 . 22 2 3 1 . 28 . . 4 . 25 . 15 16 2 . 13 Terminals 136 | . 6 1 8 9 7 13 . 15 1 1 . . 19 . . . . 16 . 11 16 2 . 11 Fabricators 17 | . . . . . . 3 . 3 . . . . 4 . . . . 5 . 2 . . . . Repair Stations . | . . . . . . . . . . . . . . . . . . . . . . . . . Recycling Units 1 | . . . . 1 . . . . . . . . . . . . . . . . . . . . Scanalyzers 2 | . . . . . . 1 . . . . . . 1 . . . . . . . . . . . Garrison Access 19 | . . . . 1 1 1 . 4 . . . . 4 . . . . 4 . 2 . . . 2 Total Hacks 994 | . 39 6 48 84 41 76 . 133 13 20 2 . 135 . . 25 . 126 . 85 79 19 . 63 Successful 631 | . 18 4 29 53 27 45 . 72 12 17 2 . 93 . . 25 . 78 . 54 44 15 . 43 Failed 358 | . 20 2 19 30 14 31 . 60 1 3 . . 42 . . . . 47 . 30 35 4 . 20 Catastrophic 55 | . 1 . 2 2 3 6 . 7 1 . . . 7 . . . . 9 . 5 10 . . 2 Database Lockouts 8 | . 1 . . 3 . . . 1 . . . . . . . . . 1 . 2 . . . . Manual 642 | . 27 6 34 76 32 33 . 77 3 5 4 . 86 . . . . 76 . 60 61 12 . 50 Terminals 776 | . 39 6 48 73 39 59 . 97 12 13 . . 95 . . . . 85 . 61 79 19 . 51 Fabricators 100 | . . . . . . 12 . 17 . . . . 27 . . . . 28 . 16 . . . . Repair Stations . | . . . . . . . . . . . . . . . . . . . . . . . . . Recycling Units 4 | . . . . 4 . . . . . . . . . . . . . . . . . . . . Scanalyzers 4 | . . . . . . 2 . . . . . . 2 . . . . . . . . . . . Garrison Access 75 | . . . . 7 2 3 . 19 . . . . 11 . . . . 13 . 8 . . . 12 Terminal Hacks 362 | . 13 4 19 34 15 22 . 34 11 16 2 . 42 . . 25 . 36 . 29 32 10 . 18 Record 40 | . . . . . 1 . . . 9 14 . . . . . 11 . . . . . 5 . . Part Schematic 51 | . . . . . . 3 . 7 . . 2 . 8 . . 7 . 7 . 3 9 . . 5 Robot Schematic 10 | . . . . . . 1 . . . . . . . . . 4 . 4 . . 1 . . . Robot Analysis 9 | . . . . . 1 2 . 3 . . . . 1 . . . . 2 . . . . . . Prototype ID Bank 48 | . 5 4 7 12 . 1 . 2 . . . . 9 . . 3 . 3 . 1 . . . 1 Open Door 14 | . . . . 3 . . . . 1 1 . . . . . . . . . . 8 1 . . Level Access Points 9 | . 2 . 1 1 1 . . 1 . . . . . . . . . 1 . 1 1 . . . Branch Access Points 12 | . 1 . 1 . 1 1 . 1 1 1 . . 1 . . . . 1 . 1 1 . . 1 Machine Index 4 | . . . . . . 1 . 1 . . . . . . . . . . . . 1 . . 1 Terminal Index 11 | . 1 . 1 1 1 1 . 2 . . . . 1 . . . . . . 1 1 . . 1 Fabricator Index 2 | . . . . . . . . . . . . . 1 . . . . . . 1 . . . . Recycling Unit Index 1 | . . . . . . . . . . . . . 1 . . . . . . . . . . . Scanalyzer Index 2 | . . . . . . . . . . . . . 1 . . . . . . 1 . . . . Garrison Index 2 | . . . . . . . . . . . . . 1 . . . . . . 1 . . . . Alert Level 40 | . 1 . 3 2 1 1 . 6 . . . . 9 . . . . 2 . 6 4 2 . 3 Unreport Threat 60 | . . . 6 5 5 4 . 8 . . . . 4 . . . . 9 . 7 5 2 . 5 Locate Traps 1 | . . . . . . . . . . . . . . . . . . 1 . . . . . . Dispatch Records 2 | . . . . 1 1 . . . . . . . . . . . . . . . . . . . Security Status 3 | . . . . 2 . . . . . . . . . . . . . 1 . . . . . . Patrol Status 1 | . . . . 1 . . . . . . . . . . . . . . . . . . . . Transport Status 1 | . . . . 1 . . . . . . . . . . . . . . . . . . . . Recall Investigation 7 | . 1 . . 2 . . . . . . . . . . . . . 2 . 2 . . . . Recall Extermination 3 | . . . . . . . . . . . . . 1 . . . . 1 . 1 . . . . Recall Reinforcements 3 | . 1 . . . . 2 . . . . . . . . . . . . . . . . . . Recall Assault 2 | . . . . . . 1 . . . . . . . . . . . . . . 1 . . . Hauler Manifests 12 | . 1 . . 1 1 2 . 1 . . . . 2 . . . . 1 . 2 . . . 1 Registered Components 6 | . . . . 1 1 1 . 1 . . . . 1 . . . . . . 1 . . . . Registered Prototypes 5 | . . . . 1 . 1 . 1 . . . . 1 . . . . 1 . . . . . . Zone Layout 1 | . . . . . 1 . . . . . . . . . . . . . . . . . . . Fabricator Hacks 64 | . . . . . . 8 . 11 . . . . 19 . . . . 16 . 10 . . . . Load Schematic 31 | . . . . . . 3 . 5 . . . . 9 . . . . 8 . 6 . . . . Build 33 | . . . . . . 5 . 6 . . . . 10 . . . . 8 . 4 . . . . Repair Station Hacks . | . . . . . . . . . . . . . . . . . . . . . . . . . Recycling Unit Hacks 1 | . . . . 1 . . . . . . . . . . . . . . . . . . . . Report Inventory 1 | . . . . 1 . . . . . . . . . . . . . . . . . . . . Scanalyzer 4 | . . . . . . 2 . . . . . . 2 . . . . . . . . . . . Insert Component 2 | . . . . . . 1 . . . . . . 1 . . . . . . . . . . . Analyze 2 | . . . . . . 1 . . . . . . 1 . . . . . . . . . . . Garrison Access Hacks 3 | . . . . 1 . 1 . . . . . . . . . . . 1 . . . . . . Seal Access 3 | . . . . 1 . 1 . . . . . . . . . . . 1 . . . . . . Unauthorized Hacks 464 | . 12 . 23 40 24 32 . 69 2 2 . . 67 . . . . 57 . 37 24 12 . 63 Terminals 136 | . 5 . 10 12 10 9 . 12 1 1 . . 19 . . . . 12 . 9 12 5 . 19 Track 58 | . 2 . 5 5 4 3 . 5 1 1 . . 10 . . . . 3 . 5 6 2 . 6 Assimilate 21 | . . . 1 1 1 2 . 2 . . . . 5 . . . . 4 . 1 . . . 4 Botnet 37 | . 3 . 3 4 3 3 . 3 . . . . 3 . . . . 3 . 3 3 2 . 4 Detonate 1 | . . . . . . . . . . . . . . . . . . . . . . . . 1 Disrupt 9 | . . . . 1 1 1 . . . . . . . . . . . 1 . . 2 . . 3 Operators 10 | . . . 1 1 1 . . 2 . . . . 1 . . . . 1 . . 1 1 . 1 Fabricators 18 | . . . . . . 2 . 3 . . . . 5 . . . . 5 . 3 . . . . Report 4 | . . . . . . . . 1 . . . . 1 . . . . 1 . 1 . . . . Prioritize 5 | . . . . . . 1 . 1 . . . . 1 . . . . 1 . 1 . . . . Siphon 6 | . . . . . . . . 1 . . . . 2 . . . . 2 . 1 . . . . Haulers 2 | . . . . . . . . . . . . . 1 . . . . 1 . . . . . . Download 1 | . . . . . . 1 . . . . . . . . . . . . . . . . . . Repair Stations . | . . . . . . . . . . . . . . . . . . . . . . . . . Recycling Units 2 | . . . . 2 . . . . . . . . . . . . . . . . . . . . Reject 1 | . . . . 1 . . . . . . . . . . . . . . . . . . . . Mask 1 | . . . . 1 . . . . . . . . . . . . . . . . . . . . Scanalyzers . | . . . . . . . . . . . . . . . . . . . . . . . . . Garrison Access 41 | . . . . 3 2 1 . 12 . . . . 6 . . . . 8 . 3 . . . 6 Reprogram 34 | . . . . 3 1 . . 11 . . . . 4 . . . . 7 . 3 . . . 5 Watchers 7 | . . . . . 1 1 . 1 . . . . 2 . . . . 1 . . . . . 1 Data Cores Recovered 2 | . . . . . . . . . . . . . . . . . . . . . . . . 2 Used . | . . . . . . . . . . . . . . . . . . . . . . . . . Hacking Detections 148 | . 6 1 8 10 8 17 . 20 1 1 . . 21 . . . . 23 . 11 12 1 . 8 Full Trace Events 25 | . 1 1 2 4 1 1 . 1 1 . . . 1 . . . . 10 . 2 . . . . Feedback Events 6 | . . . . 1 . . . . . . . . . . . . . 4 . 1 . . . . Corruption 3 | . . . . 1 . . . . . . . . . . . . . 2 . . . . . . Hackware Fried 3 | . . . . . . . . . . . . . . . . . . 2 . 1 . . . . Feedback Blocked . | . . . . . . . . . . . . . . . . . . . . . . . . . Robot Schematics Acquired 10 | . . . . . . 1 . . . . . . . . . 4 . 4 . . 1 . . . Robots Built 5 | . . . . . . . . . . . . . . . . . . 5 . . . . . . Matter 504 | . . . . . . . . . . . . . . . . . . 504 . . . . . . Time 134 | . . . . . . . . . . . . . . . . . . 134 . . . . . . Total Robot Build Rating 20 | . . . . . . . . . . . . . . . . . . 20 . . . . . . Part Schematics Acquired 49 | . . . . . . 5 . 6 . . 2 . 7 . . 7 . 7 . 2 8 . . 5 Parts Built 29 | . . . . . . 6 . 6 . . . . 8 . . . . 4 . 5 . . . . Matter 5031 | . . . . . . 906 . 880 . . . . 1121 . . . . 965 . 1159 . . . . Time 1227 | . . . . . . 173 . 262 . . . . 264 . . . . 229 . 299 . . . . Total Part Build Rating 165 | . . . . . . 28 . 28 . . . . 45 . . . . 28 . 36 . . . . Parts Repaired . | . . . . . . . . . . . . . . . . . . . . . . . . . Time . | . . . . . . . . . . . . . . . . . . . . . . . . . Parts Recycled . | . . . . . . . . . . . . . . . . . . . . . . . . . Recycled Matter . | . . . . . . . . . . . . . . . . . . . . . . . . . Retrieved Matter . | . . . . . . . . . . . . . . . . . . . . . . . . . Retrieved Components . | . . . . . . . . . . . . . . . . . . . . . . . . . Parts Scanalyzed 2 | . . . . . . 1 . . . . . . 1 . . . . . . . . . . . Part Schematics Acquired 2 | . . . . . . 1 . . . . . . 1 . . . . . . . . . . . Parts Damaged . | . . . . . . . . . . . . . . . . . . . . . . . . . Bothacking | -11 -10 -10 -9 -9 -8 -7 -7 -7 -7 -7 -7 -6 -6 -6 -6 -6 -5 -5 -5 -5 -5 -5 -5 -5 ------------ Run | Scr Mat Min Mat Sto Mat Fac Was Fac Low Low Zio Pro Fac Low Low Dat Pro Fac Was Fac Ext Cet Arc Hub Used RIF Installer . | . . . . . . . . . . . . . . . . . . . . . . . . . Robots Hacked . | . . . . . . . . . . . . . . . . . . . . . . . . . Non-combat . | . . . . . . . . . . . . . . . . . . . . . . . . . Combat . | . . . . . . . . . . . . . . . . . . . . . . . . . Robot Hacks Applied . | . . . . . . . . . . . . . . . . . . . . . . . . . Relay Couplers Released 2 | . . . . . 1 . . . . . . . 1 . . . . . . . . . . . Machine Destruction 2 | . . . . . 1 . . . . . . . 1 . . . . . . . . . . . Robots Rewired 8 | . . . . . . . . . . . . . . . 1 . 2 . . . 5 . . . Allies Hacked 3 | . . . . . . . . 1 1 . . . . . . . . . . . . 1 . . Hacks Repelled . | . . . . . . . . . . . . . . . . . . . . . . . . . Allies | -11 -10 -10 -9 -9 -8 -7 -7 -7 -7 -7 -7 -6 -6 -6 -6 -6 -5 -5 -5 -5 -5 -5 -5 -5 -------- Run | Scr Mat Min Mat Sto Mat Fac Was Fac Low Low Zio Pro Fac Low Low Dat Pro Fac Was Fac Ext Cet Arc Hub Total Allies 111 | . . 5 1 8 1 2 . 18 1 . 3 . 6 . 1 . 2 23 . 10 17 5 . 8 Largest Group 23 | . . 5 5 8 8 3 . 12 10 8 11 9 8 1 1 1 2 10 5 5 22 23 20 21 Highest-Rated Group 1111 | . . 80 80 112 112 59 . 230 184 130 200 167 150 40 20 20 58 236 162 142 794 1111 938 822 Highest-Rated Ally 156 | . . 31 26 31 31 26 . 38 38 21 25 25 41 40 20 20 29 41 41 29 156 156 134 94 Total Orders 98 | . . . 11 13 4 17 . 4 . . . . 12 . . . . 22 . 4 7 . . 4 STAY 12 | . . . 4 . . 1 . . . . . . 2 . . . . 3 . . . . . 2 GOTO 41 | . . . 1 6 2 8 . 2 . . . . 5 . . . . 9 . 2 5 . . 1 FOLLOW 45 | . . . 6 7 2 8 . 2 . . . . 5 . . . . 10 . 2 2 . . 1 Ally Attacks 686 | . . 15 22 38 46 . . 16 25 34 . 21 35 1 . . 6 85 23 38 59 102 30 90 Total Damage 12888 | . . 210 259 645 339 . . 606 600 439 . 380 743 44 . . 76 1400 449 611 1221 2405 550 1911 Kills 111 | . . 4 5 10 3 . . 8 6 4 . 2 11 . . . 1 8 1 3 14 14 3 14 Allies Corrupted 4 | . . . . . . . . . . . . . . . . . . . . . . . . 4 Allies Melted . | . . . . . . . . . . . . . . . . . . . . . . . . . Intel | -11 -10 -10 -9 -9 -8 -7 -7 -7 -7 -7 -7 -6 -6 -6 -6 -6 -5 -5 -5 -5 -5 -5 -5 -5 ------- Run | Scr Mat Min Mat Sto Mat Fac Was Fac Low Low Zio Pro Fac Low Low Dat Pro Fac Was Fac Ext Cet Arc Hub Robot Analysis Total 9 | . . . . . 1 2 . 3 . . . . 1 . . . . 2 . . . . . . Derelict Logs Recovered 17 | . . 2 . . . . . . 2 1 1 3 . 3 2 . 3 . . . . . . . Drone Launches 12 | . . . . . . . . . . . . . . . . . . . . . 12 . . . Drone Recoveries . | . . . . . . . . . . . . . . . . . . . . . . . . . Exploration | -11 -10 -10 -9 -9 -8 -7 -7 -7 -7 -7 -7 -6 -6 -6 -6 -6 -5 -5 -5 -5 -5 -5 -5 -5 ------------- Run | Scr Mat Min Mat Sto Mat Fac Was Fac Low Low Zio Pro Fac Low Low Dat Pro Fac Was Fac Ext Cet Arc Hub Turns Passed 18583 | 15 587 416 931 702 731 2186 22 1752 683 463 584 503 2021 774 459 33 537 2116 70 1139 591 536 84 648 Spaces Moved 27565 | 30 737 682 1150 940 1119 2755 68 3100 1165 854 827 879 2960 1032 883 99 938 3107 143 1301 915 568 119 1194 Core 274 | 30 243 . . . . . . . . . . . . . . . . . . . 1 . . . Treads . | . . . . . . . . . . . . . . . . . . . . . . . . . Legs . | . . . . . . . . . . . . . . . . . . . . . . . . . Wheels . | . . . . . . . . . . . . . . . . . . . . . . . . . Hover . | . . . . . . . . . . . . . . . . . . . . . . . . . Flight 27291 | . 494 682 1150 940 1119 2755 68 3100 1165 854 827 879 2960 1032 883 99 938 3107 143 1301 914 568 119 1194 Fastest Speed 26 | 50 40 37 37 32 32 29 29 29 32 32 32 32 26 32 32 26 32 26 26 26 26 32 32 26 Average Speed 32 | 50 43 38 37 34 32 31 29 31 32 32 32 32 31 32 32 31 32 31 30 31 31 32 32 31 Slowest Speed 100 | 50 100 40 37 37 32 32 32 32 32 32 32 32 32 32 32 32 35 32 32 32 100 32 32 32 Overloaded Moves 272 | . . . . . . 14 53 34 . . . . 4 . . 14 . 49 30 28 27 . . 19 Propulsion Burnouts . | . . . . . . . . . . . . . . . . . . . . . . . . . Robots Hopped 175 | . 12 6 23 18 19 24 . 30 . . . . 8 . . . . 8 . 12 1 . . 14 Cave-ins Triggered 1 | . . . . . . . . . . . . . . . . . . . . . . 1 . . Exploration Rate (%) 80 | 4 97 98 92 87 80 67 72 73 98 92 83 97 67 92 94 69 98 68 83 26 85 94 89 95 Regions Visited 24 Branch Regions 14 Pre-discovered Areas 5 | . . 1 . 1 . . . . 1 . . . . . 1 1 . . . . . . . . Known Exits Taken 14 | . 1 1 1 1 1 . . 1 1 1 . 1 1 1 . . 1 . . 1 1 . . . Unknown Exits Taken 6 | 1 . . . . . . . . . . 1 . . . 1 1 . . . . . 1 1 . Scrap Searched 29 | . . 2 . . . . . . 3 4 3 3 . 7 4 . 3 . . . . . . . Spaces Dug 123 | . . . . . . 3 . 17 2 1 . 5 42 . . . . 24 . 8 4 6 4 7 Terrain Destroyed 1002 | . 11 2 30 22 66 102 . 17 2 1 . 5 42 . . . . 24 . 8 4 6 4 656 Melee 123 | . . . . . . 3 . 17 2 1 . 5 42 . . . . 24 . 8 4 6 4 7 Projectile . | . . . . . . . . . . . . . . . . . . . . . . . . . AOE 879 | . 11 2 30 22 66 99 . . . . . . . . . . . . . . . . . 649 Actions | -11 -10 -10 -9 -9 -8 -7 -7 -7 -7 -7 -7 -6 -6 -6 -6 -6 -5 -5 -5 -5 -5 -5 -5 -5 --------- Run | Scr Mat Min Mat Sto Mat Fac Was Fac Low Low Zio Pro Fac Low Low Dat Pro Fac Was Fac Ext Cet Arc Hub Total 35135 | 29 911 808 1459 1163 1324 3820 69 3632 1438 996 1145 1061 3852 1440 995 99 1136 4030 168 1936 1173 891 155 1405 Wait 5664 | . 128 91 140 134 99 825 2 376 215 73 314 142 720 362 50 . 148 643 26 546 163 284 23 160 Move 27210 | 29 714 670 1105 904 1084 2708 67 3041 1164 853 826 878 2945 1031 882 98 937 3091 142 1276 912 567 118 1168 Hop 158 | . 10 5 21 17 15 23 . 28 . . . . 6 . . . . 8 . 12 1 . . 12 Pick Up 40 | . . . 1 1 4 10 . 4 4 2 . 1 8 . . . 1 3 . 1 . . . . Fast Attach 103 | . 4 1 12 4 7 21 . 12 2 . 3 . 13 . 1 . 2 10 . 4 . . . 7 Attach 16 | . . . . . . 10 . 2 . . . 1 . . . . . 3 . . . . . . Detach 7 | . . . . . . 4 . . . . . . . . . . . 3 . . . . . . Swap 50 | . . 1 5 4 3 3 . 4 . . . 2 7 3 . . 1 10 . 2 3 2 . . Drop 112 | . . 1 8 2 7 26 . 16 3 2 2 . 21 . . . 3 11 . 3 . . . 7 Fire 378 | . 43 23 114 52 60 81 . . . . . . . . . . . . . . . . . 5 Melee 702 | . . . . 3 . 13 . 91 25 34 . 20 113 21 40 1 25 152 . 67 32 25 8 32 Ram . | . . . . . . . . . . . . . . . . . . . . . . . . . Kick . | . . . . . . . . . . . . . . . . . . . . . . . . . Crush . | . . . . . . . . . . . . . . . . . . . . . . . . . Escape Stasis . | . . . . . . . . . . . . . . . . . . . . . . . . . Rewire 51 | . . . . . . . . . 1 . . . . . 6 . 5 . . . 39 . . . Trap . | . . . . . . . . . . . . . . . . . . . . . . . . . Miscellaneous 644 | . 12 16 53 42 45 96 . 58 24 32 . 17 19 23 16 . 14 96 . 25 23 13 6 14 Route ------- -11/Scrapyard -10/Materials (discovered 4 exits: *Mat x3 / *Min) -10/Mines (discovered 2 exits: *Mat x2) -9/Materials (discovered 7 exits: *Mat x3 / *Min x2 / *Sto x2) -9/Storage -8/Materials (discovered 3 exits: *Fac x3) -7/Factory (discovered 6 exits: *Fac x4 / *Low x2) -7/Waste -7/Factory (discovered 6 exits: *Fac x4 / *Low x2) -7/Lower Caves -7/Lower Caves (discovered 2 exits: *Fac / *Zio) -7/Zion (discovered 2 exits: [*Dee] / [*Pro]) -6/Proximity Caves -6/Factory (discovered 5 exits: *Fac x3 / *Low x2) -6/Lower Caves -6/Lower Caves (discovered 2 exits: *Fac / *Dat) -6/Data Miner -5/Proximity Caves -5/Factory (discovered 8 exits: *Fac x4 / *Upp x2 / *Ext x2) -5/Waste -5/Factory (discovered 8 exits: Fac x4 / *Upp x2 / *Ext x2) -5/Extension (discovered 3 exits: *Fac x2 / *Cet) -5/Cetus (discovered 3 exits: *Fac x2 / *Arc) -5/Archives (discovered 3 exits: *Fac / *Hub x2) -5/Hub_04(d) (discovered 4 exits: *Fac x4) History --------- Turn | Location | Event 2 | -11/Scrapyard | Discovered new exit (range 16) 16 | -11/Scrapyard | Entered Materials 23 | -10/Materials | Identified exit to Mines 94 | -10/Materials | Upgraded with Weapon slot (x1) 281 | -10/Materials | Discovered new exit (range 13) 304 | -10/Materials | Identified exit to Materials 324 | -10/Materials | Build established: Hacker-Mutant 417 | -10/Materials | Central database locked down 441 | -10/Materials | Core integrity fell below 50% 472 | -10/Materials | Reached level 2 603 | -10/Materials | Entered Mines 606 | -10/Mines | Discovered exit to Materials (range 6) 607 | -10/Mines | Learned location of Storage (-9) 719 | -10/Mines | Reached level 3 739 | -10/Mines | Upgraded with Propulsion slot (x1) 830 | -10/Mines | Learned 2 Materials zone layouts 839 | -10/Mines | Discovered exit to Materials (range 5) 842 | -10/Mines | Assisted by bots powering up and referring to "LRC-V3" 1019 | -10/Mines | Entered Materials 1019 | -9/Materials | Accompanied by 5 allies 1020 | -9/Materials | Identified exit to Mines 1021 | -9/Materials | Reached level 4 1022 | -9/Materials | Discovered new exit (range 16) 1044 | -9/Materials | Reached level 5 1067 | -9/Materials | Upgraded with Utility slot (x3) 1205 | -9/Materials | Identified exit to Storage 1271 | -9/Materials | Reached level 6 1390 | -9/Materials | Core integrity fell below 50% 1412 | -9/Materials | Identified exit to Materials 1466 | -9/Materials | Reached level 7 1487 | -9/Materials | Destroyed 7 combat bots 1522 | -9/Materials | Upgraded with Weapon slot (x1) 1743 | -9/Materials | Upgraded with Power slot (x1) 1850 | -9/Materials | Reached level 8 1950 | -9/Materials | Entered Storage 1950 | -9/Storage | Accompanied by 1 ally 1967 | -9/Storage | Upgraded with Weapon slot (x1) 2008 | -9/Storage | Learned location of Armory (-4) 2009 | -9/Storage | Build established: Hacker-Gunner 2020 | -9/Storage | Met a pair of Derelict thieves 2040 | -9/Storage | Reached level 9 2155 | -9/Storage | Central database locked down 2233 | -9/Storage | Upgraded with Utility slot (x1) 2350 | -9/Storage | First assault squad dispatched 2375 | -9/Storage | Reached level 10 2438 | -9/Storage | Destroyed 10 combat bots 2517 | -9/Storage | Garrison activated, responded to threat 2530 | -9/Storage | Build established: Hacker-Sprinter 2652 | -9/Storage | Entered Materials 2652 | -8/Materials | Accompanied by 8 allies 2654 | -8/Materials | Reached level 11 2674 | -8/Materials | Reached level 12 2927 | -8/Materials | Identified exit to Factory 2970 | -8/Materials | Upgraded with Utility slot (x2) 3025 | -8/Materials | Reached level 13 3180 | -8/Materials | Garrison activated, responded to threat 3383 | -8/Materials | Entered Factory 3383 | -7/Factory | Accompanied by 1 ally 3385 | -7/Factory | Reached level 14 3435 | -7/Factory | Identified exit to Lower Caves 3618 | -7/Factory | Reached level 15 3741 | -7/Factory | Discovered new exit (range 8) 4001 | -7/Factory | Discovered new exit (range 10) 4092 | -7/Factory | Garrison activated, responded to threat 4261 | -7/Factory | Upgraded with Utility slot (x1) 4291 | -7/Factory | Reached level 16 4431 | -7/Factory | Discovered new exit (range 14) 4578 | -7/Factory | Discovered new exit (range 15) 4583 | -7/Factory | First assault squad dispatched 4837 | -7/Factory | Fabricated Imp. Melee Analysis Suite (x1) 4866 | -7/Factory | Fabricated Imp. Melee Analysis Suite (x1) 4943 | -7/Factory | Fabricated Falx (x2) 4971 | -7/Factory | Fabricated Imp. System Shield (x1) 4972 | -7/Factory | Upgraded with Utility slot (x2) 4997 | -7/Factory | Fabricated Imp. System Shield (x1) 5184 | -7/Factory | Local fabrication network quarantined 5569 | -7/Factory | Manually triggered Chute Trap 5569 | -7/Factory | Sucked down chute 5569 | -7/Factory | Entered Waste 5572 | -7/Waste | Spotted C-40 Crusher 5580 | -7/Waste | Spotted C-40 Crusher 5584 | -7/Waste | EMP discharged 5584 | -7/Waste | Spotted C-40 Crusher 5586 | -7/Waste | Spotted C-40 Crusher 5586 | -7/Waste | Discovered new exit (range 12) 5591 | -7/Waste | Entered Factory 5901 | -7/Factory | Identified exit to Factory 5994 | -7/Factory | Garrison activated, responded to threat 6094 | -7/Factory | Reached level 17 6385 | -7/Factory | Garrison activated, responded to threat 6784 | -7/Factory | Central database locked down 6922 | -7/Factory | Fabricated Imp. Hacking Suite (x1) 6991 | -7/Factory | Fabricated Spear (x2) 7010 | -7/Factory | Fabricated Imp. Maneuvering Thrusters (x1) 7045 | -7/Factory | Fabricated Imp. Armor Integrity Analyzer (x1) 7158 | -7/Factory | Fabricated Imp. Target Analyzer (x1) 7343 | -7/Factory | Entered Lower Caves 7343 | -7/Lower Caves | Accompanied by 9 allies 7345 | -7/Lower Caves | Reached level 18 7403 | -7/Lower Caves | Spotted B-75 Beast 7418 | -7/Lower Caves | Learned Factory stockpile data 7443 | -7/Lower Caves | Encountered a Warlord checkpoint 7536 | -7/Lower Caves | Discovered new exit (range 5) 7652 | -7/Lower Caves | Destroyed B-75 Beast 7693 | -7/Lower Caves | Attracted the attention of an 0b10 base 7717 | -7/Lower Caves | Core integrity fell below 50% 7751 | -7/Lower Caves | Learned location of Extension (-5) 7751 | -7/Lower Caves | Learned location of 2 exits from Lower Caves 7751 | -7/Lower Caves | Learned 6 Proximity Caves zone layouts 7751 | -7/Lower Caves | Identified exit to Lower Caves 7754 | -7/Lower Caves | Learned Factory emergency access door positions 7773 | -7/Lower Caves | Found Alien Artifact 7773 | -7/Lower Caves | Identified Core Expander 7773 | -7/Lower Caves | Installed Core Expander, added new Weapon slot 8026 | -7/Lower Caves | Entered another Lower Caves area 8026 | -7/Lower Caves | Accompanied by 8 allies 8026 | -7/Lower Caves | Discovered exit to Factory (range 11) 8027 | -7/Lower Caves | Identified exit to Zion 8065 | -7/Lower Caves | Learned location of 1 exit from Factory 8065 | -7/Lower Caves | Learned Armory trap positions 8065 | -7/Lower Caves | Learned Extension emergency access door positions 8065 | -7/Lower Caves | Learned Armory security intel 8145 | -7/Lower Caves | Attracted the attention of an 0b10 base 8205 | -7/Lower Caves | Destroyed 10 combat bots 8212 | -7/Lower Caves | Learned location of 1 exit from Factory 8220 | -7/Lower Caves | Learned 8 Factory zone layouts 8220 | -7/Lower Caves | Learned 6 Upper Caves zone layouts 8220 | -7/Lower Caves | Learned Factory security intel 8220 | -7/Lower Caves | Learned Extension security intel 8220 | -7/Lower Caves | Learned Research terminal intel 8220 | -7/Lower Caves | Learned Armory terminal intel 8489 | -7/Lower Caves | Entered Zion 8489 | -7/Zion | Accompanied by 8 allies 8507 | -7/Zion | Found Prototype Device 8507 | -7/Zion | Identified Mobile Refinery Mk. CCLXVII 8520 | -7/Zion | Discovered new exit (range 8) 8523 | -7/Zion | Given A8's code to call for help 8557 | -7/Zion | Loaded intel: 5 derelict terminal locations 8621 | -7/Zion | Acquired unknown access codes intercepted by a Zionite 8688 | -7/Zion | Gained Derelict followers 8719 | -7/Zion | Opened final containment barrier to the Deep Caves 8724 | -7/Zion | Discovered new exit (range 3) 8724 | -7/Zion | Saw the warning signs outside the Deep Caves entrance 9073 | -7/Zion | Entered Proximity Caves 9073 | -6/Proximity Caves | Accompanied by 9 allies 9075 | -6/Proximity Caves | Reached level 19 9076 | -6/Proximity Caves | Upgraded with Utility slot (x1) 9129 | -6/Proximity Caves | Spotted B-75 Beast 9157 | -6/Proximity Caves | Destroyed B-75 Beast 9296 | -6/Proximity Caves | Learned 4 Factory zone layouts 9342 | -6/Proximity Caves | P-60 Hacker assimilated allied G-47 Trooper 9386 | -6/Proximity Caves | Attracted the attention of an 0b10 checkpoint 9410 | -6/Proximity Caves | Learned Factory terminal intel 9480 | -6/Proximity Caves | Discovered exit to Factory (range 16) 9514 | -6/Proximity Caves | Learned Factory trap positions 9576 | -6/Proximity Caves | Entered Factory 9576 | -6/Factory | Accompanied by 6 allies 9577 | -6/Factory | Identified exit to Lower Caves 9578 | -6/Factory | Identified exit to Factory 9580 | -6/Factory | Loaded intel: 106 trap records 9584 | -6/Factory | Loaded intel: 20 terminal locations 9629 | -6/Factory | Reached level 20 9652 | -6/Factory | Spotted B-75 Beast 9652 | -6/Factory | Destroyed B-75 Beast 10746 | -6/Factory | Fabricated Imp. Core Analyzer? 10756 | -6/Factory | Fabricated Lance (x2) 10792 | -6/Factory | Fabricated Imp. Phase Shifter? 10796 | -6/Factory | Fabricated Lance? 11130 | -6/Factory | Fabricated Actuator Array (x1) 11137 | -6/Factory | Build established: Machinist-Sprinter 11233 | -6/Factory | Fabricated Imp. Actuator Array (x1) 11406 | -6/Factory | Local fabrication network quarantined 11597 | -6/Factory | Entered Lower Caves 11597 | -6/Lower Caves | Accompanied by 1 ally 11598 | -6/Lower Caves | Encountered a Warlord checkpoint 11598 | -6/Lower Caves | Identified exit to Lower Caves 11599 | -6/Lower Caves | Reached level 21 11611 | -6/Lower Caves | Learned Factory terminal intel 11636 | -6/Lower Caves | Attracted the attention of an 0b10 checkpoint 11683 | -6/Lower Caves | Spotted B-75 Beast 11714 | -6/Lower Caves | Destroyed B-75 Beast 11718 | -6/Lower Caves | Learned 4 Factory zone layouts 12371 | -6/Lower Caves | Entered another Lower Caves area 12375 | -6/Lower Caves | Discovered exit to Factory (range 10) 12400 | -6/Lower Caves | Attacked by a faux Warlord 12465 | -6/Lower Caves | Destroyed 8 combat bots 12675 | -6/Lower Caves | Discovered new exit (range 23) 12720 | -6/Lower Caves | Learned Factory trap positions 12729 | -6/Lower Caves | Attracted the attention of an 0b10 outpost 12799 | -6/Lower Caves | Destroyed 7 combat bots 12830 | -6/Lower Caves | Entered Data Miner 12830 | -6/Data Miner | Accompanied by 1 ally 12830 | -6/Data Miner | Discovered new exit (range 6) 12837 | -6/Data Miner | Met Data Miner 12846 | -6/Data Miner | Learned location of Section 7 (-2) 12846 | -6/Data Miner | Acquired the access code to Warlord's prototype stash 12851 | -6/Data Miner | Received God Mode back door access code from Data Miner 12858 | -6/Data Miner | Data Conduit disabled 12863 | -6/Data Miner | Entered Proximity Caves 12872 | -5/Proximity Caves | Learned Factory interactive machine intel 13071 | -5/Proximity Caves | Reached level 22 13085 | -5/Proximity Caves | Attracted the attention of an 0b10 checkpoint 13125 | -5/Proximity Caves | Attracted the attention of an 0b10 outpost 13172 | -5/Proximity Caves | Destroyed 7 combat bots 13206 | -5/Proximity Caves | Discovered exit to Factory (range 16) 13214 | -5/Proximity Caves | Learned Factory emergency access door positions 13214 | -5/Proximity Caves | Learned Factory terminal intel 13236 | -5/Proximity Caves | Build established: Hacker-Sprinter 13400 | -5/Proximity Caves | Entered Factory 13400 | -5/Factory | Accompanied by 2 allies 13401 | -5/Factory | Identified exit to Upper Caves 13401 | -5/Factory | Identified exit to Extension 13403 | -5/Factory | Loaded intel: 64 trap records 13405 | -5/Factory | Loaded intel: 47 interactive machine locations 13406 | -5/Factory | Loaded intel: 21 terminal locations 13457 | -5/Factory | Discovered new exit (range 2) 13603 | -5/Factory | Reached level 23 13606 | -5/Factory | Upgraded with Utility slot (x1) 13644 | -5/Factory | Destroyed 7 combat bots 13809 | -5/Factory | Discovered new exit (range 22) 13871 | -5/Factory | Spotted B-75 Beast 13977 | -5/Factory | Build established: Wizard-Sprinter 13979 | -5/Factory | Discovered new exit (range 9) 14208 | -5/Factory | Central database locked down 14208 | -5/Factory | Adv. Hacking Suite fried by hacking feedback 14209 | -5/Factory | Garrison activated, responded to threat 14283 | -5/Factory | Destroyed 7 combat bots 14565 | -5/Factory | Reached level 24 14612 | -5/Factory | Discovered new exit (range 10) 14710 | -5/Factory | Identified exit to Factory 14740 | -5/Factory | Adv. Hacking Suite fried by hacking feedback 14873 | -5/Factory | Fabricated Reaction Control System? 14878 | -5/Factory | Fabricated Adv. Actuator Array? 14900 | -5/Factory | First assault squad dispatched 14940 | -5/Factory | Fabricated S-27 Virus? 14954 | -5/Factory | Fabricated Adv. Target Analyzer? 15007 | -5/Factory | Fabricated I-36 Angel (x1) 15030 | -5/Factory | Build established: Hacker-Sprinter 15499 | -5/Factory | Fabricated Exp. System Shield (x1) 15516 | -5/Factory | Manually triggered Chute Trap 15516 | -5/Factory | Sucked down chute 15516 | -5/Factory | Entered Waste 15522 | -5/Waste | Spotted C-40 Crusher 15524 | -5/Waste | Spotted C-40 Crusher 15532 | -5/Waste | Spotted C-40 Crusher 15559 | -5/Waste | Spotted C-40 Crusher 15566 | -5/Waste | Spotted C-40 Crusher 15569 | -5/Waste | Spotted C-40 Crusher 15570 | -5/Waste | Discovered new exit (range 14) 15575 | -5/Waste | 4 allies followed down the chute 15580 | -5/Waste | 4 allies followed down the chute 15586 | -5/Waste | Entered Factory 15587 | -5/Factory | Loaded intel: 22 terminal locations 15589 | -5/Factory | Discovered exit to Upper Caves (range 21) 15708 | -5/Factory | Central database locked down 15764 | -5/Factory | Exp. System Shield fried by hacking feedback 15926 | -5/Factory | Fabricated Exp. System Shield (x1) 15993 | -5/Factory | Fabricated Adv. Force Field? 16029 | -5/Factory | Garrison activated, responded to threat 16158 | -5/Factory | Fabricated Adv. Target Analyzer? 16215 | -5/Factory | Fabricated Kinetic Spear (x1) 16231 | -5/Factory | Reached level 25 16487 | -5/Factory | Local fabrication network quarantined 16531 | -5/Factory | Spotted B-75 Beast 16544 | -5/Factory | Destroyed B-75 Beast 16725 | -5/Factory | Entered Extension 16725 | -5/Extension | Accompanied by 5 allies 16742 | -5/Extension | Identified exit to Cetus 16743 | -5/Extension | Rescued A7 16747 | -5/Extension | Rescued a captive Derelict 16749 | -5/Extension | Rescued a captive Derelict 16767 | -5/Extension | Rescued a captive Derelict 16829 | -5/Extension | Rescued a captive Derelict 16832 | -5/Extension | Rescued a captive Derelict 16833 | -5/Extension | Rescued a captive Derelict 16838 | -5/Extension | Rescued a captive Derelict 16854 | -5/Extension | Spotted B-75 Beast 16861 | -5/Extension | Spotted B-75 Beast 16879 | -5/Extension | Destroyed B-75 Beast 16885 | -5/Extension | Destroyed B-75 Beast 17025 | -5/Extension | First assault squad dispatched 17030 | -5/Extension | Rescued a captive Derelict 17031 | -5/Extension | Rescued a captive Derelict 17147 | -5/Extension | Rescued a captive Derelict 17147 | -5/Extension | Rescued a captive Derelict 17225 | -5/Extension | Disrupted transfer network 17235 | -5/Extension | Disrupted transfer network 17316 | -5/Extension | Entered Cetus 17316 | -5/Cetus | Accompanied by 18 allies 17321 | -5/Cetus | Acquired a Cetus Manufacturing Module code from A7 17322 | -5/Cetus | Spotted Cetus Guard 17322 | -5/Cetus | Spotted Cetus Guard 17325 | -5/Cetus | Spotted Cetus Guard 17325 | -5/Cetus | Spotted Cetus Guard 17329 | -5/Cetus | Destroyed Cetus Guard 17330 | -5/Cetus | Allies destroyed Cetus Guard 17337 | -5/Cetus | Allies destroyed Cetus Guard 17341 | -5/Cetus | Destroyed Cetus Guard 17357 | -5/Cetus | Discovered exit to Factory (range 22) 17379 | -5/Cetus | Started Cetus Manufacturing Module 17404 | -5/Cetus | Manufactured an Enhanced Grunt 17429 | -5/Cetus | Manufactured an Enhanced Grunt 17454 | -5/Cetus | Manufactured an Enhanced Grunt 17479 | -5/Cetus | Manufactured an Enhanced Grunt 17504 | -5/Cetus | Manufactured an Enhanced Grunt 17609 | -5/Cetus | Discovered new exit (range 15) 17615 | -5/Cetus | Spotted Cetus Guard 17616 | -5/Cetus | Spotted Cetus Guard 17661 | -5/Cetus | Spotted Cetus Guard 17661 | -5/Cetus | Spotted Cetus Guard 17664 | -5/Cetus | Destroyed Cetus Guard 17668 | -5/Cetus | Allies destroyed Cetus Guard 17674 | -5/Cetus | Allies destroyed Cetus Guard 17719 | -5/Cetus | Discovered exit to Factory (range 16) 17721 | -5/Cetus | Met Revision 17 17760 | -5/Cetus | P-70 Sage assimilated allied KH-25R(h) 17850 | -5/Cetus | Crushed by falling debris 17852 | -5/Cetus | Entered Archives 17852 | -5/Archives | Accompanied by 20 allies 17858 | -5/Archives | Unable to access archive contents 17860 | -5/Archives | Discovered exit to Factory (range 13) 17861 | -5/Archives | Discovered new exit (range 20) 17864 | -5/Archives | Reached level 26 17880 | -5/Archives | Discovered new exit (range 16) 17936 | -5/Archives | Entered Hub_04(d) 17936 | -5/Hub_04(d) | Accompanied by 18 allies 17940 | -5/Hub_04(d) | Discovered exit to Factory (range 4) 17943 | -5/Hub_04(d) | Discovered exit to Factory (range 22) 17985 | -5/Hub_04(d) | Discovered exit to Factory (range 15) 18098 | -5/Hub_04(d) | Spotted B-75 Beast 18118 | -5/Hub_04(d) | Discovered exit to Factory (range 14) 18125 | -5/Hub_04(d) | Allies destroyed B-75 Beast 18506 | -5/Hub_04(d) | Network Hub disabled 18514 | -5/Hub_04(d) | Spotted Lightning 18518 | -5/Hub_04(d) | Spotted Lightning 18518 | -5/Hub_04(d) | Spotted Lightning 18518 | -5/Hub_04(d) | Spotted Lightning 18520 | -5/Hub_04(d) | Disrupted transfer network 18528 | -5/Hub_04(d) | Network Hub disabled 18528 | -5/Hub_04(d) | Network Hub disabled 18536 | -5/Hub_04(d) | First assault squad dispatched 18544 | -5/Hub_04(d) | Core integrity fell below 50% 18547 | -5/Hub_04(d) | Spotted Lightning 18548 | -5/Hub_04(d) | Spotted Lightning 18548 | -5/Hub_04(d) | Spotted Lightning 18571 | -5/Hub_04(d) | Spotted Lightning 18582 | -5/Hub_04(d) | Network Hub disabled 18582 | -5/Hub_04(d) | Garrison activated, responded to threat 18584 | -5/Hub_04(d) | Core integrity fell below 20% 18584 | -5/Hub_04(d) | Destroyed by Lightning with EMDS Last Messages --------------- 18548_ EMDS Slug penetrates Control Node. 18548_ Control Node disabled. 18550_ Administrator 6a reports 0b10 security level has risen to 4. 18555_ System corrupted: Matter fused (-8). 18557_ Dropped Imp. Arc Projector. 18559_ Acquired Lance. 18563_ Cld. Deuterium Engine overload failure. 18564_ Acquired 18 matter. 18580_ Dropped Lance. 18580_ Acquired KE Penetrator. 18582_ Slug penetrates Network Hub. 18582_ ALERT: Network intrusion management efficiency at 63%. 18582_ Network Hub explodes. 18582_ Control Node disabled. 18582_ Terminal disabled. 18582_ ALERT: Activating Garrison Access H001. 18583_ EMDS Slug penetrates Wall. 18583_ Penetrated by EMDS Slug. 18584_ EMDS Slug penetrates Wall. 18584_ Penetrated by EMDS Slug. Map ----- +----------------------------------------------------+ | | | | | | | | | | | | | | | | | | | | | | | | | | | | | | | | | | | | | | | | | ??#?#?#?#######?#######?#####?################?##? | | ##?####?##??########### ####### # #######? | | #???#?###?##?########## ##### ###?###### | | ###?#####?####### ;;;;;;;=;;;;;;;;;;;;;;;#######?# | | ??##?##?#####?## ; !%* ; ####### | | ???#?########### ; @ ; # ##### | | ?##?############ ; ! ###?### | | #?#?#?##?####### ; ; ####### | | ?########?##### ; ; " ####### | | ###??############ ; ; ##### | | ##################; ; !##### | | ?########### ; ; ##### | | ############ #####; ; hh ##### | | # ###### #### ; *!! !; h ##### | | # ###### #### ; *!! ;;;;;;;/"##"##### | | # T#### #### ; !! !;; ; ##"###### | | # ""#### #### ;;;;;;;;;;;;;#; ; # !=! ## | | # ################# + !=! ## | | + ## + # != ## | | #k ## " " " ######## !!! " # ## | | # ## " " " ######## !!! " " ## | | # ## " " " ######### " !! " # ## | | ### ## # *! # ####+#### | | ## ## " " " # T ! + A %!* #### #### | | ## ## " " " # # !%!%| ####+###### | | ## ## " " " ###+##### ######=## | | ## ## ### ##########+####### ## " " " " % | | ## ## ###k### ! ## ## " " " " " | | ### ## ! ### ### ## ## " " " | | ### #####+#### # """ """ """ ## ## =%= | +----------------------------------------------------+ Best States ------------- Heat Dissipation 37 Energy Generation 54 Energy Capacity 710 Matter Stores 300 Matter Capacity 300 Sight Range 16 Terrain Scan Range 24 Terrain Scan Density 410 Melee Speed Boost 20 Phase Shifting 10 Evasion (%) 86 Targeting Accuracy 32 Melee Accuracy 24 Target Analysis 8 Core Analysis 8 Armor Integrity Analysis 50 Recoil Reduction 2 Offensive Hacking 38 Defensive Hacking 39 Item Schematics ----------------- Hacking Suite | -7/Factory | Hacked System Backup Module | -7/Factory | Hacked Imp. Melee Analysis Suite | -7/Factory | Scanalyzed Imp. System Shield | -7/Factory | Hacked Quantum Capacitor | -7/Factory | Downloaded Imp. Hacking Suite | -7/Factory | Hacked Spear | -7/Factory | Hacked Imp. Maneuvering Thrusters | -7/Factory | Hacked Imp. Target Analyzer | -7/Factory | Hacked Imp. Armor Integrity Analyzer | -7/Factory | Hacked Actuator Array | -7/Factory | Hacked Ripper | -7/Zion | Free Tactical Coordination Suite | -7/Zion | Free Adv. Melee Analysis Suite | -6/Factory | Hacked Imp. System Restoration Module | -6/Factory | Hacked Imp. Core Analyzer | -6/Factory | Hacked Imp. Phase Shifter | -6/Factory | Hacked Lance | -6/Factory | Hacked Imp. System Backup Module | -6/Factory | Scanalyzed Imp. Actuator Array | -6/Factory | Hacked Combat Drone Bay | -6/Data Miner | Free Lgt. Regenerative Plating | -6/Data Miner | Free Exp. Flexi-carbon Leg | -6/Data Miner | Free Triangulator | -6/Data Miner | Free Exp. Terrain Scan Processor | -6/Data Miner | Free Mni. Smartbomb Launcher | -6/Data Miner | Free Plasma Sword | -6/Data Miner | Free Exp. System Shield | -5/Factory | Hacked Reaction Control System | -5/Factory | Hacked Kinetic Spear | -5/Factory | Hacked Adv. Actuator Array | -5/Factory | Hacked Adv. Target Analyzer | -5/Factory | Hacked Hyp. Coil Gun | -5/Factory | Hacked Adv. Force Field | -5/Factory | Hacked Adv. Shield Generator | -5/Factory | Hacked Cmb. Gravmag System | -5/Factory | Hacked Adv. Hacking Suite | -5/Extension | Hacked Force Booster | -5/Extension | Hacked Adv. Armor Integrity Analyzer | -5/Extension | Hacked Nanoactuators | -5/Extension | Hacked Imp. Force Booster | -5/Extension | Hacked Force Lance | -5/Extension | Hacked Enh. Force Lance | -5/Extension | Hacked Cld. Deuterium Engine | -5/Extension | Hacked Q-thruster | -5/Hub_04(d) | Hacked HERF Cannon | -5/Hub_04(d) | Hacked Mic. Fission Core | -5/Hub_04(d) | Hacked Impulse Thruster Array | -5/Hub_04(d) | Hacked Imp. Linear Gravjet | -5/Hub_04(d) | Hacked Robot Schematics ------------------ L-41 Fighter | -7/Factory | Hacked S-27 Virus | -6/Data Miner | Free G-50 Soldier | -6/Data Miner | Free H-66 Slayer | -6/Data Miner | Free I-36 Angel | -6/Data Miner | Free Y-64 Sentinel | -5/Factory | Hacked X-72 Disruptor | -5/Factory | Hacked B-60 Warrior | -5/Factory | Hacked E-15 Imp | -5/Factory | Hacked B-48 Gladiator | -5/Extension | Hacked Fabricated ------------ Imp. Melee Analysis Suite | x1 | -7/Factory Imp. Melee Analysis Suite | x1 | -7/Factory Falx | x2 | -7/Factory | Preloaded Imp. System Shield | x1 | -7/Factory Imp. System Shield | x1 | -7/Factory Imp. Hacking Suite | x1 | -7/Factory Spear | x2 | -7/Factory Imp. Maneuvering Thrusters | x1 | -7/Factory Imp. Armor Integrity Analyzer | x1 | -7/Factory Imp. Target Analyzer | x1 | -7/Factory Imp. Core Analyzer | x1 | -6/Factory Lance | x2 | -6/Factory Imp. Phase Shifter | x1 | -6/Factory Lance | x2 | -6/Factory Actuator Array | x1 | -6/Factory Imp. Actuator Array | x1 | -6/Factory Reaction Control System | x1 | -5/Factory Adv. Actuator Array | x1 | -5/Factory S-27 Virus | x4 | -5/Factory Adv. Target Analyzer | x1 | -5/Factory I-36 Angel | x1 | -5/Factory Exp. System Shield | x1 | -5/Factory Exp. System Shield | x1 | -5/Factory Adv. Force Field | x2 | -5/Factory Adv. Target Analyzer | x1 | -5/Factory Kinetic Spear | x1 | -5/Factory Alien Tech Used ----------------- Core Expander Achievements -------------- None Challenges ------------ None RPGLIKE | -11 -10 -10 -9 -9 -8 -7 -7 -7 -7 -7 -7 -6 -6 -6 -6 -6 -5 -5 -5 -5 -5 -5 -5 -5 --------- Run | Scr Mat Min Mat Sto Mat Fac Was Fac Low Low Zio Pro Fac Low Low Dat Pro Fac Was Fac Ext Cet Arc Hub Levels Raised 25 | . 1 1 5 2 3 3 . 1 1 . . 1 1 1 . . 1 2 . 1 . . 1 . XP Earned 41279 | 3000 1995 1991 6958 4036 3915 4423 67 2089 544 622 82 1174 2039 404 305 105 1275 3299 32 808 720 526 141 729 XP Spent 37140 | . 2900 500 4370 3400 3700 9550 . 1400 . . . 4120 1500 300 . . . 3500 . 1900 . . . . Upgrades 45 | . 8 1 9 4 2 5 . 4 . . . 6 2 1 . . . 1 . 2 . . . . Power Slot 1 | . . . 1 . . . . . . . . . . . . . . . . . . . . . Propulsion Slot 1 | . . 1 . . . . . . . . . . . . . . . . . . . . . . Utility Slot 11 | . . . 3 1 2 3 . . . . . 1 . . . . . 1 . . . . . . Weapon Slot 3 | . 1 . 1 1 . . . . . . . . . . . . . . . . . . . . Heat Dissipation 2 | . . . 2 . . . . . . . . . . . . . . . . . . . . . Energy Generation 1 | . . . . . . . . . . . . . . 1 . . . . . . . . . . Mass Support 10 | . 2 . 1 1 . . . 1 . . . 1 2 . . . . . . 2 . . . . Inventory Capacity 4 | . . . 1 1 . 2 . . . . . . . . . . . . . . . . . . Terrain Scan Density 4 | . . . . . . . . . . . . 4 . . . . . . . . . . . . Melee Accuracy 3 | . . . . . . . . 3 . . . . . . . . . . . . . . . . Hack Attack % 2 | . 2 . . . . . . . . . . . . . . . . . . . . . . . Hack Defense % 3 | . 3 . . . . . . . . . . . . . . . . . . . . . . . Protomatter Created 10620 | . 127 100 591 854 735 1131 . 693 354 294 . 149 722 359 328 . 400 1663 . 1078 592 68 . 382 Integrity Restored 11872 | . 255 317 1079 788 846 1951 . 1041 488 676 . 297 286 388 268 . 237 1721 . 419 272 234 119 190 Core 9611 | . 249 317 971 623 665 1561 . 820 392 568 . 191 233 316 219 . 199 1374 . 344 170 162 92 145 Parts 2261 | . 6 . 108 165 181 390 . 221 96 108 . 106 53 72 49 . 38 347 . 75 102 72 27 45 Protomatter Decayed 8119 | . 26 5 144 686 443 221 . 455 243 158 . 142 906 224 166 . 335 1358 . 1180 609 212 42 564 Game ------ Seed SurveybotHeatMachine Manual? 0 Play Time 05:06:04 Cumulative 151.7 hours Start 2020.01.17 @ 14:12:27 End 2020.01.17 @ 23:26:47 Sessions 3 Manual Loads 0 Difficulty Rogue Special Mode Winter2019/RPGLIKE Game No. 149 Rogue 149 Adventurer 0 Explorer 0 Win Type - Total 12 Types 11/0/0/1/0/0/0 Lore% 73 Gallery% 73 Achievement% 65 Wizard Run 0 Options --------- ASCII 0 Keyboard 0 Movement Numpad Keybinds 0 Fullscreen 2 Font 18/SmallcapsGlow Map View 76x50 Tactical HUD 1 Map Filters NONE Filters NONE Steam 1 RUN: 3ba36e45-54d6-4824-9325-b12d73bbe099